Workbook

Sheet CC6-Budget
B2: Table 1: Cow-Calf Budget - Eastern Idaho, 250 Cow - 2021 | O2: CCB-CC6-21
B3: Summer on Federal & State Range, Winter Feeding Necessary | L3: No. of Cows: | M3: 250
H5: Total Number
D6: Weight | H6: of Head | J6: Price or | L6: Total | M6: Value or
D7: Each | F7: Unit | H7: or Units | J7: Cost/Unit | L7: Value | M7: Cost/Head | O7: Your Value
C8: GROSS RETURNS | R8: NOTES
C9: Steer Calves | D9: 550 | F9: lbs | H9: 110 | J9: 1.67 | L9: =D9*H9*J9 -> 101035 | M9: =L9/$M$3 -> 404.14 | R9: 250 | S9: Cows
C10: Heifer Calves | D10: 525 | F10: lbs | H10: 76 | J10: 1.62 | L10: =D10*H10*J10 -> 64638 | M10: =L10/$M$3 -> 258.552 | R10: 10 | S10: Bulls
C11: Cull Cows | D11: 1300 | F11: lbs | H11: 25 | J11: 0.67 | L11: =D11*H11*J11 -> 21775 | M11: =L11/$M$3 -> 87.1 | R11: 4 | S11: Horses
C12: Cull Bulls | D12: 1800 | F12: lbs | H12: 3 | J12: 0.88 | L12: =D12*H12*J12 -> 4752 | M12: =L12/$M$3 -> 19.008 | R12: 0.1 | S12: Cow culling rate
C13: Cull Replacement Heifers | D13: 850 | F13: lbs | H13: 4 | J13: 1.12 | L13: =D13*H13*J13 -> 3808 | M13: =L13/$M$3 -> 15.232 | R13: 0.02 | S13: Cow death loss
C14: TOTAL GROSS RETURNS | L14: =SUM(L9:L13) -> 196008 | M14: =SUM(M9:M13) -> 784.032 | R14: 0.9 | S14: Calf crop
R15: 0.116 | S15: Heifer culling rate
C16: OPERATING COSTS
C17: Alfalfa Hay | F17: ton | H17: 65 | J17: 180.25 | L17: =H17*J17 -> 11716.25 | M17: =L17/$M$3 -> 46.865
C18: Alfalfa/Grass Hay | F18: ton | H18: 635 | J18: 145 | L18: 92075 | M18: =L18/$M$3 -> 368.3
C19: Protein Supplement | F19: cwt | H19: 450 | J19: 34 | L19: 15300 | M19: =L19/$M$3 -> 61.2
C20: Federal Range | F20: AUM | H20: 1020 | J20: 1.35 | L20: 1377 | M20: =L20/$M$3 -> 5.508
C21: State Range | F21: AUM | H21: 500 | J21: 7.32 | L21: 3660 | M21: =L21/$M$3 -> 14.64
C22: Grazing Association Fees | F22: AUM | H22: 303 | J22: 25 | L22: 7575 | M22: =L22/$M$3 -> 30.3
C23: Private Range | F23: AUM | H23: 303 | J23: 26 | L23: =H23*J23 -> 7878 | M23: 31.512
C24: Crop Aftermath | F24: AUM | H24: 303 | J24: 19.5 | L24: 5908.5 | M24: 23.634
C25: Salt/Mineral | F25: cwt | H25: 60 | J25: 11 | L25: 660 | M25: 2.64
C26: Veterinary/Medicine | F26: $ | H26: 1 | J26: =Vet!V32 -> 6689.113766 | L26: =H26*J26 -> 6689.113766 | M26: 26.75645506
C27: Freight/Trucking to Pasture | F27: head | H27: 250 | J27: =0.125*30 -> 3.75 | L27: 937.5 | M27: 3.75
C28: Commission | F28: head | H28: =SUM(H11:H13) -> 32 | J28: =(L11+L12+L13)*0.03/(H11+H12+H13) -> 28.4390625 | L28: =H28*J28 -> 910.05 | M28: =L28/$M$3 -> 3.6402
C29: Checkoff/Brand Inspection | F29: head | H29: =SUM(H9:H13) -> 218 | J29: 2.96 | L29: =H29*J29 -> 645.28 | M29: =L29/$M$3 -> 2.58112
C30: Hired Labor | F30: hour | H30: 1250 | J30: 18.19 | L30: 22737.5 | M30: 90.95
C31: Owner Labor | F31: hour | H31: 1000 | J31: 31.12 | L31: 31120 | M31: 124.48
C32: Machinery (Fuel, Oil, Repair) | F32: $ | H32: 1 | J32: =3000*(1+42.89%) -> 4286.7 | L32: =H32*J32 -> 4286.7 | M32: =L32/$M$3 -> 17.1468
C33: Vehicles (Fuel, Repair) | F33: $ | H33: 1 | J33: =6800*(1+43.23%) -> 9739.64 | L33: =H33*J33 -> 9739.64 | M33: =L33/$M$3 -> 38.95856
C34: Equipment (Repair) | F34: $ | H34: 1 | J34: =975*(1+6.37%) -> 1037.1075 | L34: =H34*J34 -> 1037.1075 | M34: =L34/$M$3 -> 4.14843
C35: Buildings & Improvements (Repair) | F35: $ | H35: 1 | J35: =270*(1+6.37%) -> 287.199 | L35: 287.199 | M35: 1.148796
C36: Interest on Operating Capital | F36: $ | H36: =SUM(L17:L35)*0.25 -> 56134.96007 | J36: 0.05 | L36: 2806.748003 | M36: 11.22699201
C37: TOTAL OPERATING COSTS | L37: =SUM(L17:L36) -> 227346.5883 | M37: 909.3863531
C39: NET RETURNS ABOVE OPERATING COSTS | L39: =L14-L37 -> -31338.58827 | M39: =L39/$M$3 -> -125.3543531
C41: OWNERSHIP COSTS
C42: Capital Recovery:
C43: Purchased Livestock | F43: $ | H43: 1 | J43: =Investment!I26 -> 7801.12 | L43: =H43*J43 -> 7801.12 | M43: =L43/$M$3 -> 31.20448
C44: Buildings & Improvements | F44: $ | H44: 1 | J44: =Investment!I7+Investment!I8+Investment!I10+Investment!I11+Investment!I12 -> 5970 | L44: =H44*J44 -> 5970 | M44: =L44/$M$3 -> 23.88
C45: Machinery | F45: $ | H45: 1 | J45: =Investment!I37 -> 2709 | L45: 2709 | M45: =L45/$M$3 -> 10.836
C46: Equipment | F46: $ | H46: 1 | J46: =Investment!I9+Investment!I13+Investment!I14+Investment!I15+Investment!I17+Investment!I16 -> 2058.5 | L46: 2058.5 | M46: 8.234
C47: Vehicles | F47: $ | H47: 1 | J47: =Investment!I38+Investment!I39+Investment!I40 -> 5595 | L47: 5595 | M47: 22.38
C48: Interest on Retained Livestock | F48: $ | H48: =Investment!D33 -> 426600 | J48: 0.0506 | L48: 21585.96 | M48: 86.34384
C49: Taxes & Insurance | F49: $ | H49: 1 | J49: =Investment!H42+Investment!H19 -> 781.2 | L49: 781.2 | M49: 3.1248
C50: General Overhead | F50: $ | H50: 1 | J50: 5000 | L50: 5000 | M50: 20
C51: TOTAL OWNERSHIP COSTS | L51: =SUM(L43:L50) -> 51500.78 | M51: 206.00312
C53: TOTAL COSTS | L53: =+L37+L51 -> 278847.3683 | M53: =L53/$M$3 -> 1115.389473
C55: NET RETURNS ABOVE TOTAL COSTS | L55: =+L14-L53 -> -82839.36827 | M55: =L55/$M$3 -> -331.3574731

Sheet Monthly Flows
B2: Table 2: Monthly Summary of Returns and Expenses. | P2: CCB-CC6-21
D3: Jan | E3: Feb | F3: Mar | G3: Apr | H3: May | I3: Jun | J3: Jul | K3: Aug | L3: Sep | M3: Oct | N3: Nov | O3: Dec | P3: Value
B5: Production:
C6: Steer Calves | N6: =P6 -> 101035 | P6: ='CC6-Budget'!L9 -> 101035
C7: Heifer Calves | M7: =P7 -> 64638 | P7: ='CC6-Budget'!L10 -> 64638
C8: Cull Cows | D8: =P8 -> 21775 | P8: ='CC6-Budget'!L11 -> 21775
C9: Cull Bulls | M9: =P9 -> 4752 | P9: ='CC6-Budget'!L12 -> 4752
C10: Cull Replacement Heifers | D10: =P10 -> 3808 | N10: =P10 -> 3808 | P10: ='CC6-Budget'!L13 -> 3808
B12: Total Receipts | D12: =SUM(D6:D10) -> 25583 | E12: =SUM(E6:E10) -> 0 | F12: 0 | G12: 0 | H12: 0 | I12: 0 | J12: 0 | K12: 0 | L12: 0 | M12: 69390 | N12: 104843 | O12: 0 | P12: ='CC6-Budget'!L14 -> 196008
B15: Operating Inputs:
C16: Alfalfa Hay | D16: =0.2*P16 -> 2343.25 | E16: =0.2*P16 -> 2343.25 | F16: =0.2*P16 -> 2343.25 | G16: =0.2*P16 -> 2343.25 | O16: =0.2*P16 -> 2343.25 | P16: ='CC6-Budget'!L17 -> 11716.25
C17: Alfalfa/Grass Hay | D17: =0.2*P17 -> 18415 | E17: =0.2*P17 -> 18415 | F17: =0.2*P17 -> 18415 | G17: =0.2*P17 -> 18415 | O17: =0.2*P17 -> 18415 | P17: ='CC6-Budget'!L18 -> 92075
C18: Protein Supplement | F18: =P18*0.5 -> 7650 | G18: =P18*0.5 -> 7650 | P18: ='CC6-Budget'!L19 -> 15300
C19: Federal Range | H19: =P19 -> 1377 | P19: ='CC6-Budget'!L20 -> 1377
C20: State Range | H20: =P20 -> 3660 | P20: ='CC6-Budget'!L21 -> 3660
C21: Grazing Association Fees | I21: =P21 -> 7575 | P21: ='CC6-Budget'!L22 -> 7575
C22: Private Range | N22: =P22 -> 7878 | P22: ='CC6-Budget'!L23 -> 7878
C23: Crop Aftermath | O23: =P23 -> 5908.5 | P23: ='CC6-Budget'!L24 -> 5908.5
C24: Salt/Mineral | D24: =$P$24/12 -> 55 | E24: =$P$24/12 -> 55 | F24: 55 | G24: 55 | H24: 55 | I24: 55 | J24: 55 | K24: 55 | L24: 55 | M24: 55 | N24: 55 | O24: 55 | P24: ='CC6-Budget'!L25 -> 660
C25: Veterinary/Medicine | E25: =0.2*P25 -> 1337.822753 | F25: =0.2*P25 -> 1337.822753 | N25: =0.6*P25 -> 4013.468259 | P25: ='CC6-Budget'!L26 -> 6689.113766
C26: Freight/Trucking | H26: =0.5*P26 -> 468.75 | L26: =0.5*P26 -> 468.75 | P26: ='CC6-Budget'!L27 -> 937.5
C27: Commission | N27: =P27 -> 910.05 | P27: ='CC6-Budget'!L28 -> 910.05
C28: Checkoff/Brand Inspection | N28: =P28 -> 645.28 | P28: ='CC6-Budget'!L29 -> 645.28
C29: Hired Labor | D29: =0.05*P29 -> 1136.875 | E29: =0.15*P29 -> 3410.625 | F29: =0.15*P29 -> 3410.625 | G29: =0.15*$P$29 -> 3410.625 | H29: =0.05*$P$29 -> 1136.875 | I29: =0.05*$P$29 -> 1136.875 | J29: =0.05*$P$29 -> 1136.875 | K29: =0.05*$P$29 -> 1136.875 | L29: =0.05*$P$29 -> 1136.875 | M29: =0.1*$P$29 -> 2273.75 | N29: =0.1*$P$29 -> 2273.75 | O29: =0.05*$P$29 -> 1136.875 | P29: ='CC6-Budget'!L30 -> 22737.5
C30: Owner Labor | D30: =$P$30/12 -> 2593.333333 | E30: =$P$30/12 -> 2593.333333 | F30: 2593.333333 | G30: 2593.333333 | H30: 2593.333333 | I30: 2593.333333 | J30: 2593.333333 | K30: 2593.333333 | L30: 2593.333333 | M30: 2593.333333 | N30: 2593.333333 | O30: 2593.333333 | P30: ='CC6-Budget'!L31 -> 31120
C31: Machinery (Fuel, Oil, Repair) | D31: =$P$26/12 -> 78.125 | E31: =$P$26/12 -> 78.125 | F31: 78.125 | G31: 78.125 | H31: 78.125 | I31: 78.125 | J31: 78.125 | K31: 78.125 | L31: 78.125 | M31: 78.125 | N31: 78.125 | O31: 78.125 | P31: ='CC6-Budget'!L32 -> 4286.7
C32: Vehicles (Fuel, Repair) | D32: =$P$31/12 -> 357.225 | E32: =$P$31/12 -> 357.225 | F32: 357.225 | G32: 357.225 | H32: 357.225 | I32: 357.225 | J32: 357.225 | K32: 357.225 | L32: 357.225 | M32: 357.225 | N32: 357.225 | O32: 357.225 | P32: ='CC6-Budget'!L33 -> 9739.64
C33: Equipment (Repair) | D33: =$P$32/12 -> 811.6366667 | E33: =$P$32/12 -> 811.6366667 | F33: 811.6366667 | G33: 811.6366667 | H33: 811.6366667 | I33: 811.6366667 | J33: 811.6366667 | K33: 811.6366667 | L33: 811.6366667 | M33: 811.6366667 | N33: 811.6366667 | O33: 811.6366667 | P33: ='CC6-Budget'!L34 -> 1037.1075
C34: Buildings & Improvements (Repair) | D34: =$P$34/12 -> 23.93325 | E34: =$P$34/12 -> 23.93325 | F34: 23.93325 | G34: 23.93325 | H34: 23.93325 | I34: 23.93325 | J34: 23.93325 | K34: 23.93325 | L34: 23.93325 | M34: 23.93325 | N34: 23.93325 | O34: 23.93325 | P34: ='CC6-Budget'!L35 -> 287.199
C35: Interest on Operating Capital | O35: =P35 -> 2806.748003 | P35: ='CC6-Budget'!L36 -> 2806.748003
B37: Total Costs | D37: =SUM(D16:D35) -> 25814.37825 | E37: 29425.951 | F37: 37075.951 | G37: 35738.12825 | H37: 10561.87825 | I37: 12631.12825 | J37: 5056.12825 | K37: 5056.12825 | L37: 5524.87825 | M37: 6193.00325 | N37: 19639.80151 | O37: 34529.62625 | P37: 227346.5883
B40: Net Returns | D40: =D12-D37 -> -231.37825 | E40: -29425.951 | F40: -37075.951 | G40: -35738.12825 | H40: -10561.87825 | I40: -12631.12825 | J40: -5056.12825 | K40: -5056.12825 | L40: -5524.87825 | M40: 63196.99675 | N40: 85203.19849 | O40: -34529.62625 | P40: -31338.58827
B44: Table 3: Monthly Feed Requirements.
B45: Feed | D45: Units | E45: Jan | F45: Feb | G45: Mar | H45: Apr | I45: May | J45: Jun | K45: Jul | L45: Aug | M45: Sep | N45: Oct | O45: Nov | P45: Dec
B47: Alfalfa Hay
C48: Replacement Heifers | D48: ton | E48: 13 | F48: 13 | G48: 13 | H48: 13 | P48: 13
B49: Alfalfa/Grass Hay
C50: Cows | D50: ton | E50: 120 | F50: 120 | G50: 120 | H50: 120 | P50: 120
C51: Bulls | D51: ton | E51: 5.4 | F51: 5.4 | G51: 5.4 | H51: 5.4 | P51: 5.4
C52: Horses | D52: ton | E52: 1.5 | F52: 1.5 | G52: 1.5 | H52: 1.5 | P52: 1.5
B53: Protein Supplement
C54: Cows | D54: cwt | G54: 225 | H54: 225
B55: Federal Range
C56: Cows | D56: AUM | I56: 125 | J56: 125 | K56: 125 | L56: 125 | M56: 125
C57: Replacement Heifers | D57: AUM | I57: 22 | J57: 22 | K57: 22 | L57: 22 | M57: 22
C58: Bulls | D58: AUM | I58: 5 | J58: 5 | K58: 5 | L58: 5 | M58: 5
B59: State Range
C60: Cows | D60: AUM | I60: 125 | J60: 125 | K60: 125 | L60: 125 | M60: 125
C61: Replacement Heifers | D61: AUM | I61: 21 | J61: 21 | K61: 21 | L61: 21 | M61: 21
C62: Bulls | D62: AUM | I62: 5 | J62: 5 | K62: 5 | L62: 5 | M62: 5
B63: Private Pasture
C64: Cows | D64: AUM | N64: 250
C65: Replacement Heifers | D65: AUM | N65: 43
C66: Bulls | D66: AUM | N66: 10
C67: Horses | D67: AUM | N67: 4
B68: Crop Aftermath
C69: Cows | D69: AUM | O69: 250
C70: Replacement Heifers | D70: AUM | O70: 43
C71: Bulls | D71: AUM | O71: 10
C72: Horses | D72: AUM | O72: 4
B73: Salt/Mineral | D73: cwt | E73: 5 | F73: 5 | G73: 5 | H73: 5 | I73: 5 | J73: 5 | K73: 5 | L73: 5 | M73: 5 | N73: 5 | O73: 5
C77: Daily Feed Requirements by Livestock Category (lb fed/head/day)
C78: Livestock Category | D78: Alfalfa - Grass Hay (lb) | E78: Alfalfa Hay (lb) | F78: Protein Supplement (lb) | G78: No. of Days
C81: Replacement Heifers | E81: 20 | G81: 150
C82: Cows | D82: 30 | G82: 150
C83: Cows | F83: 3 | G83: 60
C84: Bulls | D84: 36 | G84: 150
C85: Horses | D85: 25 | G85: 150

Sheet Investment
B2: Table 4: Investment Summary. | I2: CCB-CC6-21
D3: Total Value | E3: Salvage/Cull Value | F3: Livestock Share | G3: Useful Life | H3: Annual Taxes & Insurance | I3: Annual Capital Recovery | J3: 1
B5: Buildings, Improvements | K5: Interest/Discount Rate
B6: and Equipment | K6: 0.0506
C7: Fencing | D7: 20000 | E7: 0 | F7: 100 | G7: 25 | H7: =D7*0.0036 -> 72 | I7: =(D7-E7)*0.071 -> 1420
C8: Working Corrals & Pens | D8: 15000 | E8: 3000 | F8: 100 | G8: 30 | H8: 54 | I8: =(D8-E8)*0.065 -> 780
C9: Panels | D9: 2000 | E9: 1000 | F9: 100 | G9: 15 | H9: 7.2 | I9: =(D9-E9)*0.097 -> 97
C10: Barn | D10: 20000 | E10: 3000 | F10: 100 | G10: 30 | H10: 72 | I10: =(D10-E10)*0.065 -> 1105
C11: Hay Shed | D11: 30000 | E11: 5000 | F11: 100 | G11: 30 | H11: 108 | I11: =(D11-E11)*0.065 -> 1625
C12: Calving Shed | D12: 20000 | E12: 4000 | F12: 100 | G12: 30 | H12: 72 | I12: =(D12-E12)*0.065 -> 1040
C13: Feed Wagon | D13: 2000 | E13: 500 | F13: 100 | G13: 10 | H13: 7.2 | I13: =(D13-E13)*0.13 -> 195
C14: Squeeze Chute | D14: 3500 | E14: 1000 | F14: 100 | G14: 10 | H14: 12.6 | I14: =(D14-E14)*0.13 -> 325
C15: Vet Equipment | D15: 1500 | E15: 0 | F15: 100 | G15: 15 | H15: 5.4 | I15: =(D15-E15)*0.097 -> 145.5
C16: Flatbed Trailer | D16: 6000 | E16: 1000 | F16: 100 | G16: 20 | H16: 21.6 | I16: =(D16-E16)*0.081 -> 405
C17: Stock Trailer | D17: 12000 | E17: 1000 | F17: 100 | G17: 20 | H17: 43.2 | I17: =(D17-E17)*0.081 -> 891
B19: Total | D19: =SUM(D7:D17) -> 132000 | H19: =SUM(H7:H17) -> 475.2 | I19: =SUM(I7:I17) -> 8028.5
B22: Purchased Livestock
C23: Horses | D23: =2500*4 -> 10000 | E23: =600*4 -> 2400 | F23: 100 | G23: 10 | I23: =(D23-E23)*0.13 -> 988
C24: Bulls | D24: =10*4000 -> 40000 | E24: ='CC6-Budget'!D12*'CC6-Budget'!J12*10 -> 15840 | F24: 100 | G24: 4 | I24: =(D24-E24)*0.282 -> 6813.12
B26: Total | D26: =SUM(D23:D24) -> 50000 | I26: =SUM(I23:I24) -> 7801.12
B29: Retained Livestock
C30: Beef Replacement Heifers | D30: =1200*43 -> 51600 | E30: =43*'CC6-Budget'!D13*'CC6-Budget'!J13 -> 40936 | F30: 100 | I30: =D30*$K$6 -> 2610.96 | J30: 2
C31: Beef Cows | D31: =250*1500 -> 375000 | E31: =250*'CC6-Budget'!D11*'CC6-Budget'!J11 -> 217750 | F31: 100 | I31: =D31*$K$6 -> 18975 | J31: 2
B33: Total | D33: =SUM(D30:D31) -> 426600 | I33: =SUM(I30:I31) -> 21585.96
B36: Machinery and Vehicles
C37: 80 hpTractor with Loader | D37: 40000 | E37: 8500 | F37: 100 | G37: 18 | H37: =D37*0.0036 -> 144 | I37: =(D37-E37)*0.086 -> 2709
C38: Pickup 4X4 3/4 ton | D38: 20000 | E38: 5000 | F38: 100 | G38: 10 | H38: =D38*0.0036 -> 72 | I38: =(D38-E38)*0.13 -> 1950
C39: Pickup 4X4 1 ton | D39: 25000 | E39: 4000 | F39: 100 | G39: 8 | H39: =D39*0.0036 -> 90 | I39: =(D39-E39)*0.155 -> 3255
C40: ATV | D40: 4000 | E40: 1000 | F40: 100 | G40: 10 | H40: =D40*0.0094 -> 37.6 | I40: =(D40-E40)*0.13 -> 390
B42: Total | D42: =SUM(D37:D40) -> 89000 | H42: =SUM(H37:H39) -> 306 | I42: =SUM(I37:I40) -> 8304
B45: 1 | C45: Annual capital recovery is the method of calculating depreciation and interest recommended by the National Task Force
C46: on Commodity Costs and Returns Measurement Methods.
B47: 2 | C47: Interest on average investment.
C50: https://www.vcalc.com/wiki/vCalc/Capital+Recovery

Sheet Vet
C1: Veterinary Expenses
J3: Monthly Allocation
D4: Number of Head | E4: Dosage | F4: Price | H4: Units | I4: $/Unit | J4: Jan | K4: Feb | L4: Mar | M4: Apr | N4: May | O4: Jun | P4: Jul | Q4: Aug | R4: Sep | S4: Oct | T4: Nov | U4: Dec | V4: Total
A5: Vaccine | C5: Steer Calves | D5: 110
C6: Respiratory Viral | E6: 50 | F6: 77.49 | H6: dose | I6: =F6/E6 -> 1.5498 | N6: 1 | T6: 1 | V6: =SUM(J6:U6)*$D$5*I6 -> 340.956
A7: Inforce 3 | C7: 8 Way | E7: 50 | F7: 42.29 | H7: dose | I7: =F7/E7 -> 0.8458 | N7: 1 | T7: 1 | V7: =SUM(J7:U7)*$D$5*I7 -> 186.076
A8: Ultrabac 8 | C8: Heifer Calves | D8: 110
C9: Respiratory Viral | E9: 50 | F9: 77.49 | H9: dose | I9: 1.5498 | N9: 1 | T9: 1 | V9: =SUM(J9:U9)*$D$8*I9 -> 340.956
A10: Inforce 3 | C10: 8 Way | E10: 50 | F10: 42.29 | H10: dose | I10: 0.8458 | N10: 1 | T10: 1 | V10: =SUM(J10:U10)*$D$8*I10 -> 186.076
A11: Ultrabac 8 | C11: Bangs | E11: 1 | F11: 4 | H11: dose | I11: 4 | T11: 1 | V11: =SUM(J11:U11)*$D$8*I11 -> 440
C12: Cows | D12: 250
A13: Pyramid 5 | C13: Respiratory Viral | E13: 50 | F13: 65.29 | H13: dose | I13: 1.3058 | N13: 1 | V13: =SUM(J13:U13)*$D$12*I13 -> 326.45
A14: Vira Shield 6 + VL5 | C14: Pregnancy Viral | E14: 50 | F14: 127.29 | H14: dose | I14: 2.5458 | N14: 1 | V14: =SUM(J14:U14)*$D$12*I14 -> 636.45
A15: Clean-Up 2 | C15: Pour-On | E15: 384 | F15: 432.5 | H15: dose | I15: 1.126302083 | N15: 1 | V15: =SUM(J15:U15)*$D$12*I15 -> 281.5755208
A16: PYthon2 | C16: Fly Tags | E16: 100 | F16: 197.39 | H16: head | I16: 1.9739 | N16: 1 | V16: =SUM(J16:U16)*$D$12*I16 -> 493.475
C17: Preg. Check | E17: 1 | F17: 4 | H17: head | I17: 4 | T17: 1 | V17: =SUM(J17:U17)*$D$12*I17 -> 1000
C18: Replacement Heifers | D18: 34
A19: Pyramid 5 | C19: Respiratory Viral | E19: 50 | F19: 65.29 | H19: dose | I19: 1.3058 | N19: 1 | T19: 1 | V19: =SUM(J19:U19)*$D$18*I19 -> 88.7944
A20: Vira Shield 6 + VL5 | C20: Pregnancy Viral | E20: 50 | F20: 127.29 | H20: dose | I20: 2.5458 | N20: 1 | V20: =SUM(J20:U20)*$D$18*I20 -> 86.5572
A21: Clean-Up 2 | C21: Pour-On | E21: 384 | F21: 432.5 | H21: dose | I21: 1.126302083 | T21: 1 | V21: =SUM(J21:U21)*$D$18*I21 -> 38.29427083
A22: Python 2 | C22: Fly Tags | E22: 100 | F22: 197.39 | H22: head | I22: 1.9739 | N22: 1 | V22: =SUM(J22:U22)*$D$18*I22 -> 67.1126
C23: Preg. Check | E23: 1 | F23: 4 | H23: head | I23: 4 | T23: 1 | V23: =SUM(J23:U23)*$D$18*I23 -> 136
C24: Bulls | D24: 10
A25: Pyramid 5 | C25: Respiratory Viral | E25: 50 | F25: 65.29 | H25: dose | I25: 1.3058 | M25: 1 | V25: =SUM(J25:U25)*$D$24*I25 -> 13.058
A26: Ultrabac 8 | C26: 8 Way | E26: 50 | F26: 42.29 | H26: dose | I26: 0.8458 | T26: 1 | V26: =SUM(J26:U26)*$D$24*I26 -> 8.458
A27: Clean-Up 2 | C27: Pour-On | E27: 384 | F27: 432.5 | H27: dose | I27: 1.126302083 | M27: 1 | V27: =SUM(J27:U27)*$D$24*I27 -> 11.26302083
C28: Semen/Trich Test | E28: 1 | F28: 65 | H28: head | I28: 65 | M28: 1 | V28: =SUM(J28:U28)*$D$24*I28 -> 650
C29: Fly Tags | E29: 100 | F29: 197.39 | H29: head | I29: 1.9739 | M29: 1 | V29: =SUM(J29:U29)*$D$24*I29 -> 19.739
A30: Python 2 | U30: Total | V30: =SUM(V6:V29) -> 5351.291012
V32: =V30*1.25 -> 6689.113766
